[Event "*** SCC Grand Prix: Titled Tuesday Blitz"]
[Site "Chess.com"]
[Date "2020.07.07"]
[Round "4"]
[White "frederiksvane"]
[Black "Danfii"]
[Result "1-0"]
[WhiteElo "2663"]
[BlackElo "2353"]
[TimeControl "180+1"]
[EndTime "10:39:21 PDT"]
[Termination "frederiksvane won by resignation"]

1. e4 {[%clk 0:03:00.9]} 1... e5 {[%clk 0:02:59.6]} 2. Nf3 {[%clk 0:03:00.6]}
2... Nc6 {[%clk 0:02:59.5]} 3. Bb5 {[%clk 0:02:56.7]} 3... Nf6 {[%clk
0:02:58.8]} 4. O-O {[%clk 0:02:56.6]} 4... Nxe4 {[%clk 0:02:57.2]} 5. Re1 {[%clk
0:02:42.2]} 5... Nd6 {[%clk 0:02:56.8]} 6. a4 {[%clk 0:02:40.5]} 6... Be7 {[%clk
0:02:54.8]} 7. Nc3 {[%clk 0:02:40.6]} 7... O-O {[%clk 0:02:53.3]} 8. d4 {[%clk
0:02:40.7]} 8... exd4 {[%clk 0:02:51.3]} 9. Nd5 {[%clk 0:02:40.9]} 9... Re8
{[%clk 0:02:45.1]} 10. Bd3 {[%clk 0:02:35.2]} 10... Bf8 {[%clk 0:02:38.5]} 11.
Rxe8 {[%clk 0:02:10.3]} 11... Nxe8 {[%clk 0:02:34.8]} 12. Bxh7+ {[%clk 0:02:10]}
12... Kxh7 {[%clk 0:02:33.6]} 13. Ng5+ {[%clk 0:02:10]} 13... Kg6 {[%clk
0:02:23.5]} 14. Qg4 {[%clk 0:01:13.9]} 14... d6 {[%clk 0:02:23.4]} 15. Ne6+
{[%clk 0:01:08.8]} 15... Kh7 {[%clk 0:02:22.7]} 16. Qh5+ {[%clk 0:01:07.8]}
16... Kg8 {[%clk 0:02:21.8]} 17. Nxd8 {[%clk 0:01:07]} 17... Nxd8 {[%clk
0:02:22.7]} 18. Bd2 {[%clk 0:00:53.1]} 18... c6 {[%clk 0:02:22.1]} 19. Nf4
{[%clk 0:00:51.8]} 19... Nf6 {[%clk 0:02:21.2]} 20. Qf3 {[%clk 0:00:49.9]} 20...
Bg4 {[%clk 0:02:19.7]} 21. Qb3 {[%clk 0:00:48.2]} 21... g5 {[%clk 0:01:51.8]}
22. Nh3 {[%clk 0:00:41.3]} 22... Bxh3 {[%clk 0:01:37.6]} 23. Qxh3 {[%clk
0:00:42.2]} 23... Ne6 {[%clk 0:01:37.1]} 24. Qf5 {[%clk 0:00:35]} 24... Be7
{[%clk 0:01:33.8]} 25. Bxg5 {[%clk 0:00:32.2]} 25... Nxg5 {[%clk 0:01:34.7]} 26.
Qxg5+ {[%clk 0:00:33.1]} 26... Kf8 {[%clk 0:01:34.1]} 27. Re1 {[%clk 0:00:33.4]}
27... Nd5 {[%clk 0:01:24.9]} 28. Qh6+ {[%clk 0:00:29.5]} 28... Kg8 {[%clk
0:01:24.9]} 29. Re4 {[%clk 0:00:27.1]} 29... f5 {[%clk 0:01:22.3]} 30. Re6
{[%clk 0:00:22.4]} 30... Kf7 {[%clk 0:01:16.2]} 31. Qg6+ {[%clk 0:00:18.1]}
31... Kf8 {[%clk 0:01:16.4]} 32. Qxf5+ {[%clk 0:00:17.6]} 32... Ke8 {[%clk
0:01:16.4]} 33. h4 {[%clk 0:00:16.7]} 33... Kd8 {[%clk 0:01:13.5]} 34. h5 {[%clk
0:00:15.6]} 34... Kc7 {[%clk 0:01:13.9]} 35. Qf7 {[%clk 0:00:14.2]} 35... Kd7
{[%clk 0:01:12.4]} 36. h6 {[%clk 0:00:14.1]} 36... Rh8 {[%clk 0:01:04.4]} 37. h7
{[%clk 0:00:09.8]} 37... Kd8 {[%clk 0:01:04.8]} 38. Rxe7 {[%clk 0:00:09.5]}
38... Nxe7 {[%clk 0:01:03.4]} 39. Qg7 {[%clk 0:00:09.9]} 39... Re8 {[%clk
0:01:00.8]} 40. h8=Q {[%clk 0:00:10.3]} 40... Rxh8 {[%clk 0:01:01.3]} 41. Qxh8+
{[%clk 0:00:11.2]} 41... Kd7 {[%clk 0:01:01.2]} 42. Qxd4 {[%clk 0:00:12.1]} 1-0

[Event "*** SCC Grand Prix: Titled Tuesday Blitz"]
[Site "Chess.com"]
[Date "2020.07.07"]
[Round "4"]
[White "djano"]
[Black "snap_man"]
[Result "1-0"]
[WhiteElo "2457"]
[BlackElo "2290"]
[TimeControl "180+1"]
[EndTime "10:39:22 PDT"]
[Termination "djano won by resignation"]

1. d4 {[%clk 0:03:00.9]} 1... Nf6 {[%clk 0:02:58.2]} 2. Nf3 {[%clk 0:03:00.8]}
2... d5 {[%clk 0:02:57.9]} 3. Bf4 {[%clk 0:03:00.3]} 3... Bf5 {[%clk 0:02:57.2]}
4. e3 {[%clk 0:02:58.7]} 4... c6 {[%clk 0:02:57]} 5. c4 {[%clk 0:02:55.3]} 5...
e6 {[%clk 0:02:56.7]} 6. Nc3 {[%clk 0:02:52.8]} 6... Nbd7 {[%clk 0:02:50.9]} 7.
Qb3 {[%clk 0:02:52]} 7... Qb6 {[%clk 0:02:17.2]} 8. c5 {[%clk 0:02:51.6]} 8...
Qxb3 {[%clk 0:02:16.9]} 9. axb3 {[%clk 0:02:52.5]} 9... Nh5 {[%clk 0:02:12.6]}
10. b4 {[%clk 0:02:22.9]} 10... f6 {[%clk 0:02:07.6]} 11. b5 {[%clk 0:02:19.2]}
11... e5 {[%clk 0:01:46]} 12. Bg3 {[%clk 0:02:05.8]} 12... Nxg3 {[%clk
0:01:22.4]} 13. hxg3 {[%clk 0:02:06.7]} 13... g6 {[%clk 0:01:16.4]} 14. Nh4
{[%clk 0:01:45.7]} 14... Bg7 {[%clk 0:01:05.6]} 15. Nxf5 {[%clk 0:01:42.6]}
15... gxf5 {[%clk 0:01:05.5]} 16. Bd3 {[%clk 0:01:22.6]} 16... e4 {[%clk
0:00:52.4]} 17. Be2 {[%clk 0:01:22.1]} 17... Kf7 {[%clk 0:00:52.6]} 18. Kd2
{[%clk 0:01:18.5]} 18... Ke6 {[%clk 0:00:51.9]} 19. b4 {[%clk 0:01:17.1]} 19...
Bf8 {[%clk 0:00:45.4]} 20. bxc6 {[%clk 0:01:08.8]} 20... bxc6 {[%clk 0:00:45.4]}
21. Ra6 {[%clk 0:01:09]} 21... Nb8 {[%clk 0:00:44.7]} 22. Ra4 {[%clk 0:01:08.3]}
22... Be7 {[%clk 0:00:31]} 23. Rha1 {[%clk 0:00:57.1]} 23... a6 {[%clk
0:00:27.5]} 24. Bxa6 {[%clk 0:00:56.7]} 24... Nxa6 {[%clk 0:00:27.6]} 25. Rxa6
{[%clk 0:00:57.6]} 25... Rxa6 {[%clk 0:00:25.9]} 26. Rxa6 {[%clk 0:00:58.5]}
26... Kd7 {[%clk 0:00:26.4]} 27. Ra7+ {[%clk 0:00:57.8]} 27... Ke6 {[%clk
0:00:26.3]} 28. Rc7 {[%clk 0:00:57.9]} 28... h5 {[%clk 0:00:24.3]} 29. Rxc6+
{[%clk 0:00:56.9]} 29... Kd7 {[%clk 0:00:24.8]} 30. b5 {[%clk 0:00:57.2]} 30...
h4 {[%clk 0:00:25]} 31. gxh4 {[%clk 0:00:56.4]} 31... Rxh4 {[%clk 0:00:25.2]}
32. Nxd5 {[%clk 0:00:53.5]} 32... Rh2 {[%clk 0:00:25]} 33. Rc7+ {[%clk 0:00:52]}
33... Kd8 {[%clk 0:00:25.3]} 34. Rxe7 {[%clk 0:00:47.8]} 34... Rxg2 {[%clk
0:00:25.7]} 35. c6 {[%clk 0:00:46.9]} 35... Rxf2+ {[%clk 0:00:25.8]} 36. Kc3
{[%clk 0:00:47.2]} 1-0

[Event "*** SCC Grand Prix: Titled Tuesday Blitz"]
[Site "Chess.com"]
[Date "2020.07.07"]
[Round "4"]
[White "Omk124"]
[Black "teacher4chess"]
[Result "1-0"]
[WhiteElo "2373"]
[BlackElo "2005"]
[TimeControl "180+1"]
[EndTime "10:39:22 PDT"]
[Termination "Omk124 won by resignation"]

1. e4 {[%clk 0:03:00.9]} 1... e6 {[%clk 0:02:57.8]} 2. d4 {[%clk 0:02:55]} 2...
b6 {[%clk 0:02:58.1]} 3. Bd3 {[%clk 0:02:53]} 3... Bb7 {[%clk 0:02:58.3]} 4. Ne2
{[%clk 0:02:52.3]} 4... d5 {[%clk 0:02:56.3]} 5. e5 {[%clk 0:02:50.9]} 5... c5
{[%clk 0:02:51.9]} 6. c3 {[%clk 0:02:49.7]} 6... Nc6 {[%clk 0:02:50.5]} 7. O-O
{[%clk 0:02:47.4]} 7... cxd4 {[%clk 0:02:43.6]} 8. cxd4 {[%clk 0:02:46.7]} 8...
Nge7 {[%clk 0:02:21.4]} 9. Nbc3 {[%clk 0:02:44.7]} 9... Ng6 {[%clk 0:02:16.8]}
10. Be3 {[%clk 0:02:43.5]} 10... Be7 {[%clk 0:02:13.4]} 11. f4 {[%clk
0:02:41.2]} 11... O-O {[%clk 0:02:10.2]} 12. Rc1 {[%clk 0:02:39.4]} 12... f6
{[%clk 0:02:02]} 13. Bb1 {[%clk 0:02:23.6]} 13... fxe5 {[%clk 0:01:57.4]} 14.
fxe5 {[%clk 0:02:21.6]} 14... Rxf1+ {[%clk 0:01:56.8]} 15. Qxf1 {[%clk
0:02:22.5]} 15... Qf8 {[%clk 0:01:55.5]} 16. Qe1 {[%clk 0:02:20.4]} 16... Qf7
{[%clk 0:01:39]} 17. Qg3 {[%clk 0:02:15.1]} 17... Rf8 {[%clk 0:01:36.5]} 18. Qh3
{[%clk 0:02:08.6]} 18... Na5 {[%clk 0:01:11.8]} 19. b3 {[%clk 0:01:55.9]} 19...
Ba3 {[%clk 0:01:09.5]} 20. Rd1 {[%clk 0:01:50.7]} 20... Qd7 {[%clk 0:01:01.4]}
21. Nf4 {[%clk 0:01:43.7]} 21... Bb2 {[%clk 0:00:36.3]} 22. Nce2 {[%clk
0:01:40.1]} 22... Ba6 {[%clk 0:00:30]} 23. Nxg6 {[%clk 0:01:38.2]} 23... hxg6
{[%clk 0:00:28.4]} 24. Bxg6 {[%clk 0:01:35.9]} 24... Rc8 {[%clk 0:00:20.4]} 25.
Qh7+ {[%clk 0:01:32.2]} 25... Kf8 {[%clk 0:00:20.4]} 26. Rf1+ {[%clk 0:01:27.5]}
26... Ke7 {[%clk 0:00:17.7]} 27. Rf7+ {[%clk 0:01:27.4]} 27... Kd8 {[%clk
0:00:17.9]} 28. Rxd7+ {[%clk 0:01:26.7]} 28... Kxd7 {[%clk 0:00:18.2]} 29. Qxg7+
{[%clk 0:01:27.6]} 29... Kc6 {[%clk 0:00:18]} 30. Nf4 {[%clk 0:01:27]} 30... Rc7
{[%clk 0:00:12.1]} 31. Be8+ {[%clk 0:01:24.2]} 31... Kb7 {[%clk 0:00:11.6]} 32.
Qg8 {[%clk 0:01:22.2]} 32... Nc6 {[%clk 0:00:11.2]} 33. Nxe6 {[%clk 0:01:20.3]}
33... Ne7 {[%clk 0:00:10.4]} 34. Qf7 {[%clk 0:01:16.7]} 1-0

[Event "*** SCC Grand Prix: Titled Tuesday Blitz"]
[Site "Chess.com"]
[Date "2020.07.07"]
[Round "4"]
[White "dodorox"]
[Black "Khazieva_Elza"]
[Result "0-1"]
[WhiteElo "2073"]
[BlackElo "2284"]
[TimeControl "180+1"]
[EndTime "10:39:22 PDT"]
[Termination "Khazieva_Elza won on time"]

1. d4 {[%clk 0:03:00.9]} 1... Nf6 {[%clk 0:02:59.3]} 2. c4 {[%clk 0:03:00.7]}
2... d6 {[%clk 0:02:59]} 3. Nc3 {[%clk 0:03:00.1]} 3... Bf5 {[%clk 0:02:59.1]}
4. f3 {[%clk 0:02:52.8]} 4... e5 {[%clk 0:02:58.4]} 5. e4 {[%clk 0:02:40.2]}
5... exd4 {[%clk 0:02:58.3]} 6. Qxd4 {[%clk 0:02:36.8]} 6... Nc6 {[%clk
0:02:57.9]} 7. Qd1 {[%clk 0:02:32.9]} 7... Be6 {[%clk 0:02:58.5]} 8. b3 {[%clk
0:02:21.6]} 8... Be7 {[%clk 0:02:55.2]} 9. Bb2 {[%clk 0:02:20.5]} 9... Nd7
{[%clk 0:02:54.3]} 10. Rc1 {[%clk 0:02:12.9]} 10... Bf6 {[%clk 0:02:48]} 11. g3
{[%clk 0:01:27.8]} 11... O-O {[%clk 0:02:45.8]} 12. Bh3 {[%clk 0:01:27.9]} 12...
Nc5 {[%clk 0:02:12.1]} 13. Bxe6 {[%clk 0:01:25.1]} 13... fxe6 {[%clk 0:02:13]}
14. Nge2 {[%clk 0:01:15.3]} 14... Nb4 {[%clk 0:02:03]} 15. O-O {[%clk
0:01:05.9]} 15... Nbd3 {[%clk 0:02:00]} 16. Rb1 {[%clk 0:01:02.4]} 16... Nxb2
{[%clk 0:01:59]} 17. Rxb2 {[%clk 0:01:00.9]} 17... a5 {[%clk 0:01:58.8]} 18. Rd2
{[%clk 0:00:56.9]} 18... Qe8 {[%clk 0:01:50.9]} 19. Nb5 {[%clk 0:00:49.8]} 19...
Rc8 {[%clk 0:01:40.3]} 20. Nf4 {[%clk 0:00:27.5]} 20... Bg5 {[%clk 0:01:35.5]}
21. Rg2 {[%clk 0:00:17.8]} 21... Bxf4 {[%clk 0:01:29.7]} 22. gxf4 {[%clk
0:00:17.8]} 22... Rxf4 {[%clk 0:01:30.6]} 23. Qd2 {[%clk 0:00:15.9]} 23... Qf7
{[%clk 0:01:28.5]} 24. Nd4 {[%clk 0:00:14]} 24... Rf8 {[%clk 0:01:21.7]} 25. a3
{[%clk 0:00:11.9]} 25... a4 {[%clk 0:01:11.3]} 26. bxa4 {[%clk 0:00:04.3]} 26...
Nxa4 {[%clk 0:01:11]} 27. Qe3 {[%clk 0:00:01.4]} 27... Nc5 {[%clk 0:01:06]} 28.
Rg3 {[%clk 0:00:01.6]} 28... Nd7 {[%clk 0:00:59.3]} 29. Ne2 {[%clk 0:00:01.8]}
29... Rf6 {[%clk 0:00:56.5]} 30. f4 {[%clk 0:00:02.4]} 30... Rg6 {[%clk
0:00:55.7]} 31. Rf2 {[%clk 0:00:02.9]} 31... Nf6 {[%clk 0:00:52.7]} 32. Rxg6
{[%clk 0:00:02.8]} 32... Qxg6+ {[%clk 0:00:53.6]} 33. Rg2 {[%clk 0:00:02.3]}
33... Qh5 {[%clk 0:00:52.7]} 34. Kf2 {[%clk 0:00:01.7]} 34... Ng4+ {[%clk
0:00:51.5]} 0-1

[Event "*** SCC Grand Prix: Titled Tuesday Blitz"]
[Site "Chess.com"]
[Date "2020.07.07"]
[Round "4"]
[White "MrChampion_Coach"]
[Black "Zmof"]
[Result "1-0"]
[WhiteElo "2415"]
[BlackElo "2216"]
[TimeControl "180+1"]
[EndTime "10:39:23 PDT"]
[Termination "MrChampion_Coach won by checkmate"]

1. e4 {[%clk 0:03:00.9]} 1... c5 {[%clk 0:02:59.2]} 2. Nf3 {[%clk 0:02:59.6]}
2... Nc6 {[%clk 0:02:59.2]} 3. Bb5 {[%clk 0:02:59.9]} 3... g6 {[%clk 0:02:58.5]}
4. Bxc6 {[%clk 0:03:00.2]} 4... bxc6 {[%clk 0:02:59.1]} 5. d3 {[%clk 0:03:00.6]}
5... Bg7 {[%clk 0:02:59]} 6. c4 {[%clk 0:03:00.5]} 6... e5 {[%clk 0:02:57.9]} 7.
h4 {[%clk 0:02:58.3]} 7... h5 {[%clk 0:02:50.2]} 8. Nc3 {[%clk 0:02:54.6]} 8...
d6 {[%clk 0:02:49.4]} 9. Qa4 {[%clk 0:02:51.9]} 9... Qc7 {[%clk 0:02:43.8]} 10.
O-O {[%clk 0:02:27.8]} 10... Bg4 {[%clk 0:02:36.5]} 11. Ne1 {[%clk 0:02:03.6]}
11... Ne7 {[%clk 0:02:29.1]} 12. Nc2 {[%clk 0:02:01.2]} 12... O-O {[%clk
0:02:23.5]} 13. b4 {[%clk 0:01:50.5]} 13... cxb4 {[%clk 0:02:14.2]} 14. Nxb4
{[%clk 0:01:51.4]} 14... a5 {[%clk 0:02:03.4]} 15. Nc2 {[%clk 0:01:49.7]} 15...
Bd7 {[%clk 0:01:54]} 16. Rb1 {[%clk 0:01:43.2]} 16... Rfb8 {[%clk 0:01:47]} 17.
Bd2 {[%clk 0:01:42]} 17... f5 {[%clk 0:01:33.4]} 18. Bg5 {[%clk 0:01:38.9]}
18... Nc8 {[%clk 0:01:26.4]} 19. c5 {[%clk 0:01:37.4]} 19... f4 {[%clk
0:01:05.6]} 20. Qc4+ {[%clk 0:01:31]} 20... Kh7 {[%clk 0:01:04.5]} 21. Qf7
{[%clk 0:01:28.5]} 21... Na7 {[%clk 0:00:42.8]} 22. Rxb8 {[%clk 0:01:13]} 22...
Rxb8 {[%clk 0:00:42.5]} 23. Bf6 {[%clk 0:01:12.8]} 23... Rg8 {[%clk 0:00:42.5]}
24. Rb1 {[%clk 0:01:03.2]} 24... Kh8 {[%clk 0:00:39.9]} 25. Na3 {[%clk
0:00:51.7]} 25... dxc5 {[%clk 0:00:34.9]} 26. Nc4 {[%clk 0:00:49.4]} 26... Bxf6
{[%clk 0:00:20.2]} 27. Qxf6+ {[%clk 0:00:50.3]} 27... Kh7 {[%clk 0:00:20.7]} 28.
Nxe5 {[%clk 0:00:44.8]} 28... Nb5 {[%clk 0:00:17.5]} 29. Nf7 {[%clk 0:00:30.8]}
29... Rg7 {[%clk 0:00:12.2]} 30. Ng5+ {[%clk 0:00:30.5]} 30... Kh8 {[%clk
0:00:12.6]} 31. Qf8+ {[%clk 0:00:30]} 31... Rg8 {[%clk 0:00:13]} 32. Qh6# {[%clk
0:00:30.4]} 1-0

[Event "*** SCC Grand Prix: Titled Tuesday Blitz"]
[Site "Chess.com"]
[Date "2020.07.07"]
[Round "4"]
[White "MarceloPlaya"]
[Black "Klavdia_Nik"]
[Result "1-0"]
[WhiteElo "2294"]
[BlackElo "2070"]
[TimeControl "180+1"]
[EndTime "10:39:24 PDT"]
[Termination "MarceloPlaya won by resignation"]

1. e4 {[%clk 0:03:00.9]} 1... c5 {[%clk 0:02:53.9]} 2. Nf3 {[%clk 0:02:54.3]}
2... Nc6 {[%clk 0:02:50.9]} 3. d4 {[%clk 0:02:53.9]} 3... cxd4 {[%clk
0:02:50.4]} 4. Nxd4 {[%clk 0:02:53.4]} 4... Nf6 {[%clk 0:02:50.7]} 5. Nc3 {[%clk
0:02:51.9]} 5... d6 {[%clk 0:02:50.9]} 6. Bg5 {[%clk 0:02:50.8]} 6... e6 {[%clk
0:02:46.4]} 7. Qd2 {[%clk 0:02:50]} 7... Be7 {[%clk 0:02:41.8]} 8. O-O-O {[%clk
0:02:45.7]} 8... a6 {[%clk 0:02:41.9]} 9. h4 {[%clk 0:02:42.4]} 9... Qc7 {[%clk
0:02:38]} 10. f3 {[%clk 0:02:37.8]} 10... b5 {[%clk 0:02:38]} 11. g4 {[%clk
0:02:35.4]} 11... Bb7 {[%clk 0:02:36.1]} 12. Kb1 {[%clk 0:02:32.3]} 12... Rc8
{[%clk 0:02:36]} 13. h5 {[%clk 0:02:22.9]} 13... h6 {[%clk 0:02:34.6]} 14. Be3
{[%clk 0:02:21.3]} 14... Ne5 {[%clk 0:02:26.7]} 15. Bd3 {[%clk 0:02:18.2]} 15...
Nc4 {[%clk 0:02:16.8]} 16. Bxc4 {[%clk 0:02:17.3]} 16... Qxc4 {[%clk 0:02:13.8]}
17. Nce2 {[%clk 0:02:04.2]} 17... Nd7 {[%clk 0:02:01.7]} 18. g5 {[%clk
0:01:55.1]} 18... hxg5 {[%clk 0:01:53.6]} 19. Bxg5 {[%clk 0:01:53.4]} 19... Bf6
{[%clk 0:01:31]} 20. Bxf6 {[%clk 0:01:47.6]} 20... Nxf6 {[%clk 0:01:27.6]} 21.
h6 {[%clk 0:01:45.2]} 21... g6 {[%clk 0:01:22.3]} 22. Qf4 {[%clk 0:01:38.2]}
22... Ke7 {[%clk 0:01:10.3]} 23. Nf5+ {[%clk 0:01:04.3]} 23... gxf5 {[%clk
0:01:04.9]} 24. Qxd6+ {[%clk 0:01:03.6]} 24... Ke8 {[%clk 0:01:05.3]} 25. Qe5
{[%clk 0:00:53.2]} 25... Qxc2+ {[%clk 0:00:54]} 26. Ka1 {[%clk 0:00:51.5]} 26...
Ke7 {[%clk 0:00:46.4]} 27. Nd4 {[%clk 0:00:41.9]} 27... Nd7 {[%clk 0:00:28.6]}
28. Nxf5+ {[%clk 0:00:36.4]} 28... Kd8 {[%clk 0:00:13]} 29. Qxh8+ {[%clk
0:00:35.3]} 1-0

[Event "*** SCC Grand Prix: Titled Tuesday Blitz"]
[Site "Chess.com"]
[Date "2020.07.07"]
[Round "4"]
[White "SGchess01"]
[Black "Glidzhian_Gor"]
[Result "1-0"]
[WhiteElo "2621"]
[BlackElo "2458"]
[TimeControl "180+1"]
[EndTime "10:39:26 PDT"]
[Termination "SGchess01 won by resignation"]

1. e4 {[%clk 0:02:59.3]} 1... c5 {[%clk 0:02:56.3]} 2. Nf3 {[%clk 0:02:59.2]}
2... d6 {[%clk 0:02:56.5]} 3. d4 {[%clk 0:02:59.2]} 3... cxd4 {[%clk 0:02:57.4]}
4. Nxd4 {[%clk 0:03:00.1]} 4... Nf6 {[%clk 0:02:58.2]} 5. Nc3 {[%clk 0:02:58.7]}
5... Nc6 {[%clk 0:02:58.9]} 6. Bg5 {[%clk 0:02:58.1]} 6... e5 {[%clk 0:02:58.9]}
7. Nf5 {[%clk 0:02:46.8]} 7... Bxf5 {[%clk 0:02:58.4]} 8. exf5 {[%clk
0:02:46.7]} 8... Be7 {[%clk 0:02:58.9]} 9. g4 {[%clk 0:02:42.2]} 9... Nd4 {[%clk
0:02:53.2]} 10. Bg2 {[%clk 0:02:41.7]} 10... O-O {[%clk 0:02:52.9]} 11. Be3
{[%clk 0:02:38.1]} 11... Nc6 {[%clk 0:02:46.1]} 12. O-O {[%clk 0:02:34.5]} 12...
Nd7 {[%clk 0:02:40.7]} 13. Qd2 {[%clk 0:02:29.7]} 13... Qa5 {[%clk 0:02:33.3]}
14. Rad1 {[%clk 0:02:18.8]} 14... Rfe8 {[%clk 0:02:22.8]} 15. Nd5 {[%clk
0:02:15.1]} 15... Qxd2 {[%clk 0:01:47.6]} 16. Rxd2 {[%clk 0:02:16]} 16... Bd8
{[%clk 0:01:43.2]} 17. Rfd1 {[%clk 0:02:15.7]} 17... Rc8 {[%clk 0:01:42.8]} 18.
c3 {[%clk 0:02:14]} 18... a6 {[%clk 0:01:33.2]} 19. g5 {[%clk 0:02:13.6]} 19...
Na5 {[%clk 0:01:30.9]} 20. b3 {[%clk 0:02:12.2]} 20... Nf8 {[%clk 0:01:15.3]}
21. h4 {[%clk 0:02:07.8]} 21... b5 {[%clk 0:01:14.6]} 22. Be4 {[%clk 0:02:05.1]}
22... g6 {[%clk 0:01:13.6]} 23. f6 {[%clk 0:02:03.3]} 23... Ne6 {[%clk
0:01:13.7]} 24. Bf3 {[%clk 0:01:50.7]} 24... h6 {[%clk 0:00:59.7]} 25. Kg2
{[%clk 0:01:47.3]} 25... Nf4+ {[%clk 0:00:38.1]} 26. Nxf4 {[%clk 0:01:43.6]}
26... exf4 {[%clk 0:00:39]} 27. Bxf4 {[%clk 0:01:44.4]} 27... Rxc3 {[%clk
0:00:36.7]} 28. Bd5 {[%clk 0:01:38.5]} 28... hxg5 {[%clk 0:00:31.1]} 29. hxg5
{[%clk 0:01:39.4]} 29... Nc6 {[%clk 0:00:27.7]} 30. Bxd6 {[%clk 0:01:29]} 30...
Bb6 {[%clk 0:00:20.1]} 31. Bg3 {[%clk 0:01:13.9]} 31... Nb4 {[%clk 0:00:17.5]}
32. Bf3 {[%clk 0:01:13.1]} 32... Rc2 {[%clk 0:00:15.8]} 33. Rxc2 {[%clk
0:01:12.8]} 33... Nxc2 {[%clk 0:00:16.7]} 34. Rd6 {[%clk 0:01:12.8]} 34... Ne1+
{[%clk 0:00:14.1]} 35. Kf1 {[%clk 0:01:12.3]} 35... Nxf3 {[%clk 0:00:14.4]} 36.
Rxb6 {[%clk 0:01:12.1]} 36... Re1+ {[%clk 0:00:13.9]} 37. Kg2 {[%clk 0:01:12]}
37... Nxg5 {[%clk 0:00:14.8]} 38. Rxa6 {[%clk 0:01:11.5]} 38... Ne4 {[%clk
0:00:15.4]} 39. Rb6 {[%clk 0:01:09.5]} 39... Kh7 {[%clk 0:00:13.3]} 40. Rxb5
{[%clk 0:01:09.5]} 40... Nxf6 {[%clk 0:00:13.6]} 41. a4 {[%clk 0:01:07.5]} 41...
Ra1 {[%clk 0:00:11.7]} 42. Rb7 {[%clk 0:01:06]} 42... Kg8 {[%clk 0:00:07]} 43.
Be5 {[%clk 0:01:06.3]} 1-0

[Event "*** SCC Grand Prix: Titled Tuesday Blitz"]
[Site "Chess.com"]
[Date "2020.07.07"]
[Round "4"]
[White "AndrewDGreen"]
[Black "Artem_Sadovsky"]
[Result "0-1"]
[WhiteElo "2336"]
[BlackElo "2540"]
[TimeControl "180+1"]
[EndTime "10:39:26 PDT"]
[Termination "Artem_Sadovsky won by resignation"]

1. d4 {[%clk 0:03:00.9]} 1... g6 {[%clk 0:02:33.6]} 2. e4 {[%clk 0:02:58.2]}
2... Bg7 {[%clk 0:01:56.9]} 3. Nc3 {[%clk 0:02:57.7]} 3... d6 {[%clk 0:01:50.3]}
4. Be3 {[%clk 0:02:57.1]} 4... e5 {[%clk 0:01:43.8]} 5. Qd2 {[%clk 0:02:49.2]}
5... Nc6 {[%clk 0:01:41.6]} 6. Nf3 {[%clk 0:02:48.7]} 6... Bg4 {[%clk
0:01:36.4]} 7. dxe5 {[%clk 0:02:43.2]} 7... Bxf3 {[%clk 0:01:34.4]} 8. gxf3
{[%clk 0:02:41]} 8... dxe5 {[%clk 0:01:35.3]} 9. Nd5 {[%clk 0:02:35.4]} 9... Nd4
{[%clk 0:01:33.6]} 10. Be2 {[%clk 0:02:22.5]} 10... c6 {[%clk 0:01:33.3]} 11.
Nb4 {[%clk 0:02:14.5]} 11... Qh4 {[%clk 0:01:32.1]} 12. O-O-O {[%clk 0:02:01.3]}
12... Rd8 {[%clk 0:01:27.4]} 13. Qe1 {[%clk 0:01:53.2]} 13... a5 {[%clk
0:01:17.1]} 14. Nd3 {[%clk 0:01:52.4]} 14... b6 {[%clk 0:01:13.4]} 15. c3 {[%clk
0:01:47.5]} 15... Nxe2+ {[%clk 0:01:11.7]} 16. Qxe2 {[%clk 0:01:48.4]} 16... c5
{[%clk 0:01:11.7]} 17. Qc2 {[%clk 0:01:30.5]} 17... Qh3 {[%clk 0:00:53.5]} 18.
Qa4+ {[%clk 0:01:29.1]} 18... Qd7 {[%clk 0:00:53.7]} 19. Qb3 {[%clk 0:01:24.7]}
19... Qc6 {[%clk 0:00:49.5]} 20. f4 {[%clk 0:01:14.8]} 20... c4 {[%clk 0:00:49]}
21. Qxb6 {[%clk 0:01:09.6]} 21... Qxb6 {[%clk 0:00:48]} 22. Bxb6 {[%clk
0:01:10.5]} 22... Rxd3 {[%clk 0:00:45.4]} 23. Rxd3 {[%clk 0:01:08.4]} 23... cxd3
{[%clk 0:00:46.3]} 24. fxe5 {[%clk 0:01:01.4]} 24... Bxe5 {[%clk 0:00:39.5]} 25.
Bxa5 {[%clk 0:01:00.7]} 25... Bf4+ {[%clk 0:00:38]} 26. Kb1 {[%clk 0:00:59.7]}
26... Nf6 {[%clk 0:00:38.9]} 27. f3 {[%clk 0:00:59.1]} 27... O-O {[%clk
0:00:38.3]} 28. Bb6 {[%clk 0:00:58.6]} 28... Rb8 {[%clk 0:00:29.4]} 29. Bd4
{[%clk 0:00:58.6]} 29... Nd7 {[%clk 0:00:26.5]} 30. h3 {[%clk 0:00:57.4]} 30...
Ne5 {[%clk 0:00:25.9]} 31. Bxe5 {[%clk 0:00:57.3]} 31... Bxe5 {[%clk 0:00:26.8]}
32. Rd1 {[%clk 0:00:57.5]} 32... Bxc3 {[%clk 0:00:27.2]} 33. b3 {[%clk
0:00:56.8]} 33... Rd8 {[%clk 0:00:26.2]} 34. a4 {[%clk 0:00:54.2]} 34... Kf8
{[%clk 0:00:22.1]} 35. Ka2 {[%clk 0:00:54.7]} 35... Ke7 {[%clk 0:00:19.7]} 36.
Ka3 {[%clk 0:00:55.1]} 36... Rd4 {[%clk 0:00:19]} 37. Ka2 {[%clk 0:00:54.8]}
37... Kd6 {[%clk 0:00:15.6]} 38. Kb1 {[%clk 0:00:55.1]} 38... Kc5 {[%clk
0:00:15.2]} 39. Ka2 {[%clk 0:00:56]} 39... Kb4 {[%clk 0:00:14.8]} 40. h4 {[%clk
0:00:56.9]} 40... d2 {[%clk 0:00:12]} 41. h5 {[%clk 0:00:57.8]} 41... gxh5
{[%clk 0:00:11.7]} 0-1